bitfinex/quotes_SOLUSD_20251204
["timestamp","ask_amount","ask_price","bid_price","bid_amount"]
[1764883862763,7.86867698,139.7,139.67,0.77]
[1764883864160,12.53145898,139.7,139.67,0.77]
[1764883865091,5.372782,139.69,139.67,0.1]
[1764883865264,13.47272692,139.68,139.67,0.1]
[1764883865463,14.18272692,139.68,139.67,0.1]
[1764883865891,18.97400856,139.68,139.67,0.1]
[1764883866383,14.18272692,139.68,139.67,0.1]
[1764883866967,21.34194799,139.68,139.67,0.1]
[1764883867483,26.13075819,139.68,139.67,0.1]
[1764883870479,28.99824447,139.68,139.67,0.1]
[1764883872312,24.20943427,139.68,139.67,0.1]
[1764883873016,19.54665227,139.68,139.67,0.1]
[1764883873321,32.08943427,139.68,139.67,0.1]
[1764883880096,36.8527596,139.68,139.67,1e-08]
[1764883881316,25.11880892,139.66,139.65,1e-08]
[1764883881648,8.80994492,139.65,139.56,11.92779774]
[1764883881796,16.68994492,139.64,139.61,0.68]
[1764883882001,13.47272692,139.63,139.61,0.68]
[1764883882200,13.47272692,139.62,139.61,0.68]
[1764883882796,4.662782,139.62,139.61,0.68]
[1764883883205,11.82507966,139.62,139.61,0.68]
[1764883884922,20.63502458,139.62,139.59,0.68]
[1764883885220,4.662782,139.61,139.59,0.68]
[1764883885614,4.662782,139.6,139.58,0.68]
[1764883886201,4.662782,139.59,139.58,0.68]
[1764883886724,11.82648324,139.6,139.58,0.68]
[1764883887826,7.1630281,139.61,139.58,0.68]
[1764883889526,11.8258101,139.61,139.58,0.68]
[1764883890734,11.8258101,139.61,139.58,7.84433644]
[1764883890932,122.40529426,139.62,139.58,7.84433644]
[1764883891230,122.40529426,139.62,139.59,0.68]
[1764883894432,120.73161521,139.62,139.59,0.68]
[1764883894849,2.98910295,139.6,139.59,0.68]
[1764883895132,2.98910295,139.6,139.57,0.68]
[1764883895323,2.98910295,139.58,139.56,17.088864]
[1764883895518,2.98910295,139.57,139.56,0.78]
[1764883896537,3.68910295,139.57,139.56,0.1]
[1764883896723,19.66391137,139.57,139.56,0.1]
[1764883898026,22.21189609,139.58,139.56,0.1]
[1764883898221,18.033956,139.58,139.56,0.78]
[1764883899939,2.98910295,139.57,139.56,0.1]
[1764883901224,10.15396645,139.57,139.56,0.1]
[1764883904138,10.15396645,139.57,139.56,0.81]
[1764883906336,10.15396645,139.57,139.56,0.1]
[1764883907116,10.15396645,139.57,139.56,0.81]
[1764883907546,7.1648635,139.57,139.56,0.1]
[1764883907725,10.15396645,139.57,139.56,0.1]
[1764883909622,19.65391137,139.57,139.56,0.1]
[1764883909823,18.96391137,139.57,139.56,0.1]
[1764883910037,19.65391137,139.57,139.56,0.1]
[1764883912231,19.65391137,139.57,139.56,1e-08]
[1764883912425,40.72843413,139.57,139.56,1e-08]
[1764883912624,35.96277537,139.57,139.56,1e-08]
[1764883913333,138.66277537,139.57,139.56,1e-08]
[1764883914351,143.42641485,139.57,139.56,1e-08]
[1764883915634,147.16773557,139.57,139.56,1e-08]
[1764883916367,200.90421188,139.57,139.46,7.17047304]
[1764883916532,25.11880892,139.53,139.49,0.71]
[1764883916831,2.98910295,139.51,139.49,0.71]
[1764883917858,10.1570479,139.51,139.49,0.71]
[1764883918256,15.97788987,139.51,139.5,0.71]
[1764883918562,15.97788987,139.51,139.45,2.98910295]
[1764883918563,15.97788987,139.51,139.46,0.71]
[1764883918735,15.97788987,139.51,139.47,7.17000019]
[1764883919054,15.0476639,139.52,139.48,7.169485]
[1764883919231,15.04746415,139.52,139.49,7.87894088]
[1764883919634,15.04746415,139.52,139.5,0.71]
[1764883921262,2.98910295,139.54,139.5,0.71]
[1764883921558,121.30402382,139.56,139.5,0.71]
[1764883921559,8.80994492,139.55,139.5,0.71]
[1764883921763,2.98910295,139.53,139.5,0.71]
[1764883921932,7.16714776,139.53,139.5,0.71]
[1764883922766,18.05572693,139.54,139.5,7.8783946]
[1764883923137,18.05572693,139.54,139.5,7.1683946]
[1764883923340,18.05572693,139.54,139.51,0.71]
[1764883924778,7.9,139.54,139.51,7.87768097]
[1764883925253,7.9,139.54,139.52,0.71]
[1764883925640,102.7,139.56,139.52,0.71]
[1764883925844,109.86553868,139.56,139.52,3.69910295]
[1764883926273,102.7,139.56,139.53,3.69910295]
[1764883926563,15.06490194,139.57,139.54,3.69910295]
[1764883926737,15.06490194,139.57,139.54,7.876289]
[1764883926936,7.9,139.57,139.55,0.71]
[1764883927336,15.97449845,139.58,139.55,0.71]
[1764883927537,18.9636014,139.58,139.55,0.71]
[1764883928336,10.15365648,139.58,139.55,0.71]
[1764883928738,18.05301643,139.59,139.55,7.87577515]
[1764883928960,15.06391348,139.59,139.55,10.8648781]
[1764883929150,15.06391348,139.59,139.56,0.71]
[1764883930571,102.7,139.62,139.57,7.1648635]
[1764883932757,16.70994492,139.64,139.59,10.86284484]
[1764883932974,7.9,139.64,139.59,10.86284484]
[1764883933269,7.9,139.64,139.6,0.69]
[1764883933450,15.06138925,139.64,139.6,0.69]
[1764883934167,3.70910295,139.63,139.6,0.69]
[1764883934349,10.15136161,139.63,139.6,0.69]
[1764883935649,10.87136161,139.63,139.6,0.69]
[1764883935849,2.98910295,139.62,139.6,0.69]
[1764883937978,10.15140447,139.62,139.6,0.69]
[1764883938157,7.16230152,139.62,139.6,0.69]
[1764883939559,10.15140447,139.62,139.6,0.69]
[1764883939752,7.16230152,139.62,139.6,0.69]
[1764883942276,2.98910295,139.63,139.6,0.69]
[1764883942447,7.9,139.64,139.61,2.98910295]
[1764883942777,7.16097951,139.65,139.62,2.98910295]
[1764883943184,10.15008246,139.65,139.62,0.69]
[1764883943482,10.15008246,139.65,139.6,25.07161486]
[1764883943483,10.15008246,139.65,139.63,0.69]
[1764883943653,7.16097951,139.65,139.63,0.69]
[1764883944989,112.84952929,139.66,139.63,0.69]
[1764883945279,112.84952929,139.66,139.63,10.84067648]
[1764883945280,102.7,139.66,139.63,10.84067648]
[1764883945488,102.7,139.66,139.63,7.85157353]
[1764883945676,102.7,139.66,139.64,0.69]
[1764883947179,102.7,139.66,139.64,7.8511838]
[1764883947799,102.7,139.66,139.65,0.69]
[1764883948097,102.7,139.66,139.63,10.15069367]
[1764883948098,112.84937317,139.66,139.64,0.69]
[1764883948288,105.68910295,139.66,139.64,0.69]
[1764883948687,102.7,139.66,139.64,0.69]
[1764883949502,10.1490218,139.67,139.64,0.69]
[1764883950779,7.15939389,139.68,139.64,7.85117084]
[1764883950982,7.15939389,139.68,139.64,10.84027379]
[1764883951187,7.15939389,139.68,139.65,0.69]
[1764883951386,120.72804598,139.69,139.65,0.69]
[1764883951606,121.44804598,139.69,139.65,0.69]
[1764883952405,0.72,139.68,139.65,0.69]
[1764883952582,7.87950076,139.68,139.65,0.69]
[1764883952980,117.73876147,139.69,139.65,7.85067163]
[1764883953404,118.45876147,139.69,139.66,0.69]
[1764883953904,118.45876147,139.69,139.63,0.69]
[1764883953905,2.98910295,139.67,139.63,0.69]
[1764883954200,2.98910295,139.67,139.64,0.69]
[1764883954601,3.70910295,139.67,139.64,0.69]
[1764883954799,10.86898221,139.67,139.64,0.69]
[1764883955107,10.14898221,139.67,139.64,0.69]
[1764883955702,7.15987926,139.67,139.64,0.69]
[1764883955910,10.14898221,139.67,139.64,7.85120647]
[1764883956283,2.98910295,139.67,139.65,0.69]
[1764883956493,11.82594875,139.68,139.63,7.16168743]
[1764883956694,5.38643571,139.67,139.64,0.69]
[1764883956890,4.66643571,139.67,139.64,0.69]
[1764883957092,11.8263508,139.67,139.64,0.69]
[1764883957504,7.15928701,139.68,139.64,12.51757958]
[1764883957709,123.12522624,139.69,139.64,12.51757958]
[1764883957912,123.12522624,139.69,139.65,0.69]
[1764883958605,123.12522624,139.69,139.65,7.85036087]
[1764883958810,123.12522624,139.69,139.66,0.69]
[1764883959590,122.40522624,139.69,139.66,0.69]
[1764883959799,0.72,139.68,139.65,7.85036087]
[1764883960109,123.12522624,139.69,139.66,0.69]
[1764883960611,102.7,139.69,139.66,12.51624173]
[1764883961009,102.7,139.69,139.67,0.69]
[1764883961203,12.74438753,139.71,139.67,0.69]
[1764883961701,12.74438753,139.71,139.68,7.15922107]
[1764883962090,12.74438753,139.71,139.68,0.69]
[1764883963612,12.74438753,139.71,139.67,7.15949331]
[1764883963613,5.37643571,139.7,139.67,0.69]
[1764883964115,11.82475582,139.7,139.67,7.84962724]
[1764883964318,12.53475582,139.7,139.67,7.84962724]
[1764883965392,4.66643571,139.7,139.68,0.69]
[1764883965587,12.73436258,139.71,139.68,0.69]
[1764883965999,12.73436258,139.71,139.67,0.69]
[1764883966616,12.53484675,139.7,139.67,0.69]
[1764883968620,7.86841104,139.7,139.67,0.69]
[1764883968804,7.86841104,139.7,139.67,7.84958976]
[1764883969419,7.15841104,139.7,139.67,7.15958976]
[1764883969612,7.15841104,139.7,139.68,0.69]
[1764883970897,7.15841104,139.7,139.67,7.15958976]
[1764883970898,7.86841104,139.7,139.67,7.84958976]
[1764883972215,7.86841104,139.7,139.67,7.15958976]
[1764883972411,7.86841104,139.7,139.68,0.69]
[1764883973126,7.15841104,139.7,139.68,0.69]
[1764883973531,7.86841104,139.7,139.67,0.69]
[1764883973702,7.86841104,139.7,139.66,7.1601298]
[1764883973910,5.37643571,139.69,139.66,0.69]
[1764883974997,4.66643571,139.67,139.63,0.69]
[1764883975201,4.66643571,139.65,139.62,7.85200092]
[1764883975428,4.66643571,139.65,139.63,0.69]
[1764883976139,4.66643571,139.65,139.61,7.85257359]
[1764883976140,12.53746016,139.65,139.61,7.85257359]
[1764883976324,5.37643571,139.64,139.61,0.69]
[1764883976704,4.66643571,139.62,139.59,39.90813939]
[1764883977017,4.66643571,139.61,139.59,32.05451089]
[1764883977201,5.37643571,139.61,139.59,32.05451089]
[1764883977802,4.66643571,139.61,139.59,32.05451089]
[1764883978033,13.25643571,139.62,139.59,32.74451089]
[1764883978228,20.4189449,139.62,139.59,32.74451089]
[1764883980328,5.37643571,139.61,139.59,32.05451089]
[1764883980719,20.4189449,139.62,139.59,32.74451089]
[1764883985946,4.66643571,139.61,139.59,32.74451089]
[1764883986444,11.82932885,139.61,139.59,32.74451089]
[1764883986954,5.37643571,139.6,139.56,0.69]
[1764883987128,4.66643571,139.59,139.56,0.69]
[1764883987463,5.37643571,139.59,139.56,0.69]
[1764883987757,4.66643571,139.59,139.56,0.69]
[1764883987931,11.8298351,139.6,139.56,7.85533018]
[1764883988647,11.8298351,139.6,139.55,12.54643571]
[1764883988648,4.66643571,139.59,139.57,0.69]
[1764883988835,5.37643571,139.59,139.56,0.69]
[1764883989650,4.66643571,139.59,139.56,7.85504074]
[1764883990132,11.8304328,139.59,139.56,7.85504074]
[1764883991552,12.5404328,139.59,139.56,0.69]
[1764883993842,11.8304328,139.59,139.56,7.85531928]
[1764883994231,11.8304328,139.59,139.56,0.69]
[1764883994427,12.5204328,139.59,139.56,0.69]
[1764883995259,11.8304328,139.59,139.56,0.69]
[1764883995761,12.5204328,139.59,139.56,0.69]
[1764883997147,11.8304328,139.59,139.56,0.69]
[1764883997549,11.8304328,139.59,139.56,7.85524904]
[1764883997938,102.7,139.6,139.58,7.16435019]
[1764883998240,0.69,139.65,139.59,5.34643571]
[1764883998463,0.69,139.65,139.6,0.68]
[1764883998464,20.3974244,139.65,139.6,0.68]
[1764883998845,5.35643571,139.64,139.6,0.68]
[1764883999661,5.35643571,139.64,139.59,0.68]
[1764883999662,4.66643571,139.62,139.59,0.68]
[1764883999854,4.66643571,139.62,139.58,7.16416227]
[1764883999855,4.66643571,139.62,139.6,0.68]
[1764884000185,7.16178471,139.63,139.6,0.68]
[1764884000478,108.05643571,139.64,139.6,7.84329471]
[1764884000479,122.40794411,139.64,139.6,7.84329471]
[1764884000758,123.09794411,139.64,139.6,7.84329471]
[1764884000960,123.09794411,139.64,139.61,0.68]
[1764884002266,0.69,139.63,139.59,12.51015394]
[1764884002477,5.35643571,139.63,139.59,7.84371823]
[1764884002784,5.35643571,139.63,139.59,7.16371823]
[1764884002942,5.35643571,139.63,139.6,0.68]
[1764884004055,12.51849704,139.63,139.6,0.68]
[1764884005776,102.7,139.64,139.61,4.66643571]
[1764884006276,102.7,139.64,139.62,0.68]
[1764884006570,0.69,139.63,139.6,7.16330022]
[1764884006762,4.66643571,139.64,139.61,0.68]
[1764884006962,0.69,139.64,139.61,0.68]
[1764884007165,5.35643571,139.64,139.61,0.68]
[1764884007356,12.51790709,139.64,139.61,0.68]
[1764884007670,7.85147138,139.64,139.61,0.68]
[1764884007877,7.88,139.65,139.61,12.5092156]
[1764884008253,7.88,139.65,139.62,0.68]
[1764884008452,15.73081366,139.65,139.62,0.68]
[1764884009463,109.85986398,139.67,139.62,7.84214446]
[1764884009662,109.85986398,139.67,139.63,4.66643571]
[1764884009663,0.69,139.66,139.63,4.66643571]
[1764884009973,110.54986398,139.67,139.63,5.34643571]
[1764884010155,110.54986398,139.67,139.64,0.68]
[1764884010355,115.21629969,139.67,139.64,0.68]
[1764884011370,4.66643571,139.65,139.61,0.68]
[1764884011673,14.16638063,139.66,139.62,23.47113917]
[1764884011850,14.16638063,139.66,139.62,24.15113917]
[1764884012052,135.63919812,139.67,139.63,7.84177915]
[1764884012053,122.40629969,139.67,139.63,7.84177915]
[1764884012275,118.42986398,139.67,139.63,12.50821486]
[1764884012479,14.16638063,139.66,139.61,5.34643571]
[1764884012651,4.66643571,139.65,139.61,0.68]
[1764884012853,12.51723578,139.65,139.62,0.68]
[1764884013058,11.82723578,139.65,139.6,11.82955369]
[1764884013260,0.69,139.64,139.6,12.50955369]
[1764884013476,0.69,139.64,139.61,0.68]
[1764884014276,7.85130133,139.64,139.61,0.68]
[1764884014482,7.85130133,139.64,139.6,7.16311798]
[1764884014654,0.69,139.63,139.6,0.68]
[1764884015365,19.72773704,139.64,139.6,0.68]
[1764884015579,20.41773704,139.64,139.6,7.84318491]
[1764884015779,0.69,139.63,139.6,7.84318491]
[1764884016288,7.8518008,139.63,139.6,7.84318491]
[1764884017578,19.72792446,139.64,139.61,0.68]
[1764884017757,20.41792446,139.64,139.61,0.68]
[1764884018359,18.73949763,139.64,139.61,0.68]
[1764884018884,0.69,139.63,139.6,7.84318491]
[1764884019084,18.73949763,139.64,139.6,7.16318491]
[1764884019384,18.73949763,139.64,139.61,0.68]
[1764884020270,0.69,139.63,139.6,7.84318491]
[1764884020663,3.67800888,139.63,139.6,7.84318491]
[1764884021768,10.14986677,139.63,139.6,0.68]
[1764884021966,10.83986677,139.63,139.6,0.68]
[1764884022162,3.67800888,139.62,139.59,7.84349132]
[1764884022485,10.84030701,139.62,139.59,7.84349132]
[1764884026089,7.16202504,139.63,139.59,7.16349132]
[1764884026392,10.86003392,139.63,139.6,0.67]
[1764884033280,0.71,139.62,139.59,7.83349132]
[1764884033488,3.69800888,139.62,139.58,23.47306466]
[1764884033674,3.69800888,139.62,139.58,24.14306466]
[1764884033880,0.71,139.61,139.58,24.14306466]
[1764884034499,10.86105219,139.61,139.57,7.1647841]
[1764884034688,10.86105219,139.61,139.57,15.7147841]
[1764884034893,10.86105219,139.61,139.58,0.67]
[1764884034894,10.15105219,139.61,139.58,0.67]
[1764884035205,10.86105219,139.61,139.58,0.67]
[1764884035691,7.87304331,139.61,139.58,7.83431376]
[1764884035898,7.16304331,139.61,139.58,7.83431376]
[1764884036099,7.87304331,139.61,139.58,7.83431376]
[1764884036475,7.16304331,139.61,139.59,0.67]
[1764884036675,15.97224258,139.62,139.59,0.67]
[1764884036988,16.68224258,139.62,139.57,15.71464565]
[1764884037179,0.71,139.61,139.57,15.04464565]
[1764884037381,0.71,139.61,139.57,15.71464565]
[1764884037787,0.71,139.61,139.58,0.67]
[1764884038674,7.87292385,139.61,139.58,0.67]
[1764884040000,7.16292385,139.61,139.58,0.67]
[1764884040408,7.87292385,139.61,139.58,0.67]
[1764884040985,7.16292385,139.61,139.58,0.67]
[1764884041494,7.87292385,139.61,139.58,0.67]
[1764884041692,7.87292385,139.61,139.58,7.83417685]
[1764884041888,7.87292385,139.61,139.58,0.67]
[1764884045808,3.69800888,139.6,139.57,0.67]
[1764884046696,0.71,139.59,139.56,31.35399542]
[1764884046914,3.69800888,139.59,139.56,32.02399542]
[1764884047225,7.16361881,139.6,139.56,32.02399542]
[1764884047226,10.86162769,139.6,139.57,0.67]
[1764884048211,109.86286735,139.61,139.57,10.82265078]
[1764884048510,110.57286735,139.61,139.57,10.82265078]
[1764884048707,110.57286735,139.61,139.58,0.67]
[1764884050813,110.57286735,139.61,139.58,7.83422587]
[1764884051314,113.56087623,139.61,139.58,0.67]
[1764884053114,110.57286735,139.61,139.58,0.67]
[1764884054588,110.57286735,139.61,139.58,7.83434087]
[1764884054989,102.7,139.61,139.59,0.67]
[1764884055209,102.7,139.61,139.59,3.65800888]
[1764884055399,7.88,139.62,139.59,3.65800888]
[1764884055600,7.88,139.62,139.6,0.67]
[1764884055796,7.1614905,139.64,139.6,0.67]
[1764884055997,15.04079241,139.65,139.61,2.98800888]
[1764884056202,15.76079241,139.65,139.61,2.98800888]
[1764884056398,15.76079241,139.65,139.62,0.67]
[1764884057916,2.98800888,139.63,139.59,0.67]
[1764884058131,10.86800888,139.63,139.59,0.67]
[1764884058417,8.6,139.63,139.6,0.67]
[1764884058996,7.88,139.63,139.6,10.82099538]
[1764884059433,103.42,139.64,139.61,0.67]
[1764884060938,110.58135632,139.64,139.61,7.83279492]
[1764884062252,113.5693652,139.64,139.61,7.83279492]
[1764884063856,110.58135632,139.64,139.61,7.83279492]
[1764884064825,110.58135632,139.64,139.62,0.67]
[1764884065140,110.58135632,139.64,139.61,7.83279492]
[1764884066052,109.86135632,139.64,139.6,7.16310203]
[1764884066220,3.70800888,139.63,139.59,7.16362602]
[1764884066622,0.72,139.62,139.59,7.83362602]
[1764884066816,3.70800888,139.62,139.58,7.16421475]
[1764884067324,0.72,139.61,139.57,19.96687288]
[1764884067640,0.72,139.61,139.58,0.67]
[1764884068519,7.88291643,139.61,139.58,0.67]
[1764884068826,109.86249323,139.62,139.58,10.82229232]
[1764884069035,110.58249323,139.62,139.58,10.82229232]
[1764884069348,110.58249323,139.62,139.59,0.67]
[1764884069843,109.86249323,139.62,139.59,7.83369688]
[1764884070046,102.7,139.62,139.6,0.67]
[1764884070948,102.7,139.62,139.6,7.83321777]
[1764884075945,102.7,139.62,139.61,0.67]
[1764884076852,102.7,139.62,139.6,7.16321777]
[1764884077028,0.72,139.61,139.59,7.16370082]
[1764884077345,103.42,139.62,139.59,7.83370082]
[1764884077530,103.42,139.62,139.6,0.67]
[1764884077730,102.7,139.62,139.6,0.67]
[1764884080053,102.7,139.62,139.6,7.83293787]
[1764884080245,0.72,139.63,139.6,10.82094675]
[1764884080552,0.72,139.63,139.6,12.50139698]
[1764884080933,0.72,139.63,139.6,7.83293787]
[1764884081261,7.8818984,139.63,139.6,7.16293787]
[1764884081752,7.8818984,139.63,139.6,7.83293787]
[1764884082050,0.72,139.62,139.59,7.16368995]
[1764884082548,0.72,139.62,139.59,7.83368995]
[1764884083051,12.55094205,139.62,139.58,7.16421976]
[1764884083250,0.69,139.61,139.58,7.87421976]
[1764884084152,7.85293833,139.61,139.57,11.8331205]
[1764884084360,7.85293833,139.61,139.57,12.5431205]
[1764884084567,0.69,139.6,139.57,12.5431205]
[1764884085152,0.69,139.6,139.58,0.71]
[1764884087852,0.69,139.6,139.57,7.16466139]
[1764884088157,7.85341831,139.6,139.56,31.35417729]
[1764884088352,7.85341831,139.6,139.57,0.71]
[1764884089856,7.85341831,139.6,139.57,7.87477508]
[1764884090052,15.04284504,139.61,139.57,12.54323419]
[1764884090253,15.04284504,139.61,139.58,0.71]
[1764884090254,15.73284504,139.61,139.58,0.71]
[1764884091652,7.88,139.61,139.58,5.37845911]
[1764884091851,103.39,139.62,139.58,5.37845911]
[1764884092153,0.69,139.61,139.59,7.87383695]
[1764884092553,0.69,139.61,139.58,7.87424849]
[1764884093946,7.85285643,139.61,139.57,7.16469786]
[1764884094144,12.52131554,139.61,139.57,7.16469786]
[1764884094343,0.69,139.6,139.57,7.16469786]
[1764884095244,12.52195091,139.6,139.56,23.47413615]
[1764884095445,7.8534918,139.6,139.56,24.18413615]
[1764884095644,7.1634918,139.6,139.56,24.18413615]
[1764884095847,0.69,139.59,139.56,24.18413615]
[1764884098672,0.69,139.59,139.57,0.71]
[1764884098967,7.8534918,139.6,139.57,0.71]
[1764884099169,12.52195091,139.6,139.57,7.87478386]
[1764884099345,7.8534918,139.6,139.57,7.87478386]
[1764884100167,15.04296587,139.61,139.58,0.71]
[1764884100469,15.73296587,139.61,139.58,0.71]
[1764884101569,7.88,139.61,139.58,7.87402074]
[1764884101775,109.86242859,139.62,139.58,12.54247985]
[1764884101949,109.86242859,139.62,139.59,0.71]
[1764884101950,110.55242859,139.62,139.59,0.71]
[1764884102472,102.7,139.62,139.59,5.37845911]
[1764884102859,102.7,139.62,139.6,5.37845911]
[1764884103051,7.85161047,139.64,139.6,5.37845911]
[1764884103250,7.85161047,139.64,139.61,0.71]
[1764884104846,4.66845911,139.62,139.56,17.018864]
[1764884105054,4.66845911,139.61,139.57,0.71]
[1764884105267,5.35845911,139.61,139.57,7.87475883]
[1764884105556,0.69,139.6,139.57,7.87475883]
[1764884105756,7.85335365,139.6,139.57,7.87475883]
[1764884105950,7.85335365,139.6,139.56,12.54369384]
[1764884106373,0.69,139.59,139.56,12.54369384]
[1764884106557,0.69,139.59,139.56,7.87523473]
[1764884108081,12.52237788,139.59,139.55,20.97732311]
[1764884108286,12.52237788,139.59,139.55,21.68732311]
[1764884108656,12.52237788,139.59,139.56,0.71]
[1764884109377,7.85391877,139.59,139.56,0.71]
[1764884109553,119.38994492,139.62,139.56,12.54383391]
[1764884109754,112.83161404,139.61,139.57,4.66845911]
[1764884110077,108.05845911,139.61,139.57,0.71]
[1764884110280,5.35845911,139.6,139.56,7.1653748]
[1764884110454,5.35845911,139.6,139.56,7.8753748]
[1764884110656,0.69,139.59,139.56,7.8753748]
[1764884113081,11.83198707,139.6,139.56,7.1653748]
[1764884113381,12.51198707,139.6,139.57,0.71]
[1764884113690,11.83198707,139.6,139.57,0.71]
[1764884113861,0.68,139.59,139.57,0.71]
[1764884116786,7.84352796,139.6,139.57,0.71]
[1764884119168,114.53148088,139.61,139.57,7.87467802]
[1764884119486,115.21148088,139.61,139.57,12.54313713]
[1764884119884,0.68,139.6,139.57,12.54313713]
[1764884120277,0.68,139.6,139.57,11.83313713]
[1764884120484,0.68,139.6,139.58,0.71]
[1764884122599,110.54302177,139.61,139.58,0.71]
[1764884124580,0.68,139.6,139.58,0.71]
[1764884125765,0.68,139.6,139.57,7.16467802]
[1764884126088,0.68,139.6,139.57,12.54313713]
[1764884126607,0.68,139.6,139.57,7.87467802]
[1764884126900,12.5118959,139.6,139.57,7.87467802]
[1764884127703,0.68,139.6,139.57,7.87467802]
[1764884127992,0.68,139.6,139.58,0.71]
[1764884128296,109.86302713,139.61,139.58,0.71]
[1764884128992,109.86302713,139.61,139.55,34.22299724]
[1764884129209,5.4516274,139.6,139.56,7.87537068]
[1764884129501,10.12008651,139.6,139.56,7.87537068]
[1764884129702,5.34845911,139.59,139.55,17.018864]
[1764884129873,4.66845911,139.58,139.55,17.018864]
[1764884130075,5.34845911,139.58,139.55,17.018864]
[1764884131095,5.34845911,139.58,139.55,24.184753]
[1764884131685,5.34845911,139.57,139.54,0.71]
[1764884133576,4.66845911,139.55,139.5,31.91993975]
[1764884133775,4.66845911,139.55,139.51,0.71]
[1764884133991,0.68,139.54,139.51,7.87784843]
[1764884134182,5.34845911,139.55,139.51,7.87784843]
[1764884134390,5.34845911,139.55,139.52,0.71]
[1764884134774,12.51439291,139.55,139.52,0.71]
[1764884136796,12.51439291,139.55,139.52,7.87738071]
[1764884138879,7.88,139.57,139.53,0.71]
[1764884139078,7.88,139.57,139.53,5.37845911]
[1764884139079,4.66845911,139.57,139.53,5.37845911]
[1764884139292,4.66845911,139.57,139.53,0.71]
[1764884139613,4.66845911,139.57,139.54,0.71]
[1764884140490,2.99096328,139.57,139.54,7.8762446]
[1764884141090,2.99096328,139.57,139.55,0.71]
[1764884144507,3.66096328,139.56,139.53,7.16676575]
[1764884144814,3.66096328,139.56,139.53,7.84676575]
[1764884147288,3.66096328,139.56,139.53,7.16676575]
[1764884147505,15.97583528,139.55,139.51,7.16756127]
[1764884147811,2.99096328,139.55,139.52,0.68]
[1764884148710,7.83554465,139.56,139.52,7.84730393]
[1764884148916,10.82650793,139.56,139.52,7.84730393]
[1764884149211,10.82650793,139.56,139.53,0.67]
[1764884152008,10.82650793,139.56,139.53,7.83683535]
[1764884152216,10.15650793,139.56,139.53,7.83683535]
[1764884152392,2.99096328,139.56,139.54,0.67]
[1764884153095,117.74442938,139.58,139.54,0.67]
[1764884153302,19.64439869,139.6,139.55,2.99096328]
[1764884153612,10.83445377,139.6,139.56,7.16537689]
[1764884153797,10.83445377,139.6,139.56,7.83537689]
[1764884153998,10.83445377,139.6,139.57,0.67]
[1764884154698,2.99096328,139.6,139.57,7.83475466]
[1764884155093,18.71401859,139.61,139.58,0.67]
[1764884159321,18.03401859,139.61,139.57,7.16475466]
[1764884159503,0.68,139.6,139.57,7.83475466]
[1764884160008,0.68,139.6,139.58,0.67]
[1764884160530,18.71401859,139.61,139.58,0.67]
[1764884160750,105.69096328,139.62,139.58,0.67]
[1764884161025,102.7,139.62,139.59,2.99096328]
[1764884161534,18.71238117,139.64,139.6,7.83332378]
[1764884162013,18.71238117,139.64,139.61,0.67]
[1764884162316,18.03238117,139.64,139.61,0.67]
[1764884162508,0.68,139.63,139.6,7.83332378]
[1764884163235,2.99096328,139.62,139.57,0.67]
[1764884163397,2.99096328,139.61,139.58,7.16424093]
[1764884163600,3.67096328,139.62,139.58,7.16424093]
[1764884163798,3.67096328,139.62,139.59,0.67]
[1764884164318,0.68,139.61,139.58,0.67]
[1764884164529,3.67096328,139.61,139.58,0.67]
[1764884165414,0.68,139.61,139.58,7.83429713]
[1764884165823,7.16261184,139.62,139.59,0.67]
[1764884166318,7.84261184,139.62,139.59,0.67]
[1764884167412,10.83357512,139.62,139.59,0.67]
[1764884169443,10.15357512,139.62,139.57,10.15572967]
[1764884169631,3.67096328,139.61,139.58,0.67]
[1764884171450,7.16435019,139.58,139.55,0.67]
[1764884171634,10.83531347,139.58,139.55,0.67]